fUSD/lending_fUSD_20260404
["ID","MTS","AMOUNT","RATE_DAILY","PERIOD"]
[419724119,1775335862588,-151.0,0.00032376,7]
[419724120,1775335862597,-151.0,0.00032376,7]
[419724121,1775335862607,-151.0,0.00032376,7]
[419724122,1775335862616,-151.0,0.00032376,7]
[419724123,1775335862625,-477.132427,0.00032376,7]
[419724124,1775335862634,-477.132427,0.00032376,7]
[419724125,1775335862643,-477.132427,0.00032376,7]
[419724126,1775335862652,-477.132427,0.00032376,7]
[419724127,1775335862662,-960.1,0.00032667,2]
[419724128,1775335862671,-151.0,0.00032802,7]
[419724129,1775335862680,-151.0,0.00032802,7]
[419724130,1775335862690,-3444.301,0.00032802,2]
[419724131,1775335862699,-622.0,0.00032802,2]
[419724132,1775335862708,-1046.0,0.00032802,2]
[419724133,1775335862718,-626.23725227,0.00032876,2]
[419724134,1775335862727,-379.75804174,0.00032876,2]
[419724135,1775335862736,-385.94064242,0.00032876,2]
[419724136,1775335862745,-500.0,0.00032876,2]
[419724137,1775335862755,-390.43883157,0.00032876,2]
[419724138,1775335862764,-500.0,0.00032876,2]
[419724139,1775335862773,-500.0,0.00032876,2]
[419724140,1775335862783,-500.0,0.00032876,2]
[419724141,1775335862792,-244.73031987,0.00032876,2]
[419724142,1775335862801,-500.0,0.00032876,2]
[419724143,1775335862810,-500.0,0.00032876,2]
[419724144,1775335862819,-500.0,0.00032876,2]
[419724145,1775335862828,-500.0,0.00032876,2]
[419724146,1775335862838,-221.85346172,0.00032876,2]
[419724147,1775335862847,-500.0,0.00032876,2]
[419724148,1775335862856,-500.0,0.00032876,2]
[419724149,1775335862866,-500.0,0.00032876,2]
[419724150,1775335862875,-500.0,0.00032876,2]
[419724151,1775335862885,-500.0,0.00032876,2]
[419724152,1775335862894,-500.0,0.00032876,2]
[419724153,1775335862903,-500.0,0.00032876,2]
[419724154,1775335862912,-500.0,0.00032876,2]
[419724155,1775335862921,-573.46972753,0.00032876,2]
[419724156,1775335862931,-500.0,0.00032876,2]
[419724157,1775335862940,-623.1269484,0.00032876,2]
[419724158,1775335862949,-500.0,0.00032876,2]
[419724159,1775335862959,-500.0,0.00032876,2]
[419724160,1775335862968,-250.0,0.00032876,2]
[419724161,1775335862978,-1000.0,0.00032877,120]
[419724162,1775335862987,-900.0,0.00032877,10]
[419724163,1775335862996,-900.0,0.00032877,10]
[419724164,1775335863007,-900.0,0.00032877,10]
[419724165,1775335863016,-900.0,0.00032877,10]
[419724166,1775335863026,-900.0,0.00032877,10]
[419724167,1775335863035,-900.0,0.00032877,10]
[419724168,1775335863044,-900.0,0.00032877,10]
[419724169,1775335863054,-900.0,0.00032877,10]
[419724170,1775335863063,-281.07,0.00032877,2]
[419724171,1775335863073,-301.87570371,0.00032877,2]
[419724172,1775335863082,-453.595881,0.00032877,7]
[419724173,1775335863092,-453.595881,0.00032877,7]
[419724174,1775335863101,-453.595881,0.00032877,7]
[419724175,1775335863111,-453.595881,0.00032877,7]
[419724176,1775335863120,-453.595881,0.00032877,7]
[419724177,1775335863129,-453.595881,0.00032877,7]
[419724178,1775335863138,-453.595881,0.00032877,7]
[419724179,1775335863148,-453.595881,0.00032877,7]
[419724180,1775335863159,-500.0,0.00032877,2]
[419724181,1775335863169,-500.0,0.00032877,2]
[419724182,1775335863179,-393.29290781,0.00032877,2]
[419724183,1775335863189,-166.05910117,0.00032877,30]
[419724184,1775335863198,-371.59668296,0.00032881,7]
[419724185,1775335863207,-10258.82,0.000329,2]
[419724186,1775335863216,-566.698068,0.00033,14]
[419724187,1775335863226,-5098.0,0.00033,14]
[419724188,1775335863236,-5000.0,0.00033,2]
[419724189,1775335863245,-335.3237179,0.00033,120]
[419724190,1775335863255,-2000.0,0.00033,7]
[419724191,1775335863264,-150.0,0.00033043,2]
[419724192,1775335863273,-10258.82,0.000335,2]
[419724193,1775335863282,-1572.0,0.00033542,11]
[419724194,1775335863292,-1572.0,0.00033589,11]
[419724195,1775335863304,-515.0,0.00033692,19]
[419724196,1775335863313,-275.17,0.00033742,30]
[419724197,1775335863322,-8041.44532917,0.000338,2]
[419724198,1775335863331,-641.60608325,0.00033803,2]
[419724199,1775335863341,-267.88800689,0.00033803,2]
[419724200,1775335863351,-2810.0,0.00033862,11]
[419724201,1775335863361,-335.3237179,0.000339,120]
[419724202,1775335863370,-2000.0,0.000341,7]
[419724203,1775335863380,-2810.0,0.00034156,11]
[419724204,1775335863390,-162.0,0.00034182,11]
[419724205,1775335863399,-250.0,0.00034247,2]
[419724206,1775335863408,-380.0,0.00034247,2]
[419724207,1775335863417,-150.0,0.00034247,2]
[419724208,1775335863426,-264.0,0.00034247,2]
[419724209,1775335863436,-250.0,0.00034247,2]
[419724210,1775335863445,-250.0,0.00034247,2]
[419724211,1775335863454,-245.0,0.00034247,2]
[419724212,1775335863464,-10258.82,0.000343,2]
[419724213,1775335863472,-461.35,0.0003438,30]
[419724214,1775335863482,-160.9357,0.000344,7]
[419724215,1775335863491,-160.9357,0.000344,7]
[419724216,1775335863499,-160.9357,0.000344,7]
[419724217,1775335863508,-160.9357,0.000344,7]
[419724218,1775335863518,-1747.0,0.00034439,30]
[419724219,1775335863527,-530.0,0.00034439,30]
[419724220,1775335863536,-279.0,0.00034439,30]
[419724221,1775335863545,-270.0,0.00034439,30]
[419724222,1775335863554,-153.0,0.00034439,30]
[419724223,1775335863563,-470.0,0.00034439,30]
[419724224,1775335863572,-840.0,0.00034439,30]
[419724225,1775335863581,-5061.29326262,0.00034459,2]
[419724226,1775335863590,-960.1,0.0003447,2]
[419724227,1775335863674,-2810.0,0.00034476,11]
[419724228,1775335863684,-1572.0,0.00034476,11]
[419724229,1775335863694,-959.468694,0.00034476,7]
[419724230,1775335863703,-959.468694,0.00034476,7]
[419724231,1775335863712,-959.468694,0.00034476,7]
[419724232,1775335863721,-959.468694,0.00034476,7]
[419724233,1775335863730,-421.013062,0.00034476,7]
[419724234,1775335863739,-421.013062,0.00034476,7]
[419724235,1775335863748,-505.720137,0.00034476,7]
[419724236,1775335863758,-421.013062,0.00034476,7]
[419724237,1775335863767,-421.013062,0.00034476,7]
[419724238,1775335863776,-505.720137,0.00034476,7]
[419724239,1775335863786,-9138.347163,0.00034476,7]
[419724240,1775335863796,-505.720137,0.00034476,7]
[419724241,1775335863805,-9138.347163,0.00034476,7]
[419724242,1775335863814,-505.720137,0.00034476,7]
[419724243,1775335863823,-9138.347163,0.00034476,7]
[419724244,1775335863832,-9138.347163,0.00034476,7]
[419724245,1775335863842,-1889.06906,0.00034476,7]
[419724246,1775335863851,-1128.948676,0.00034476,7]
[419724247,1775335863860,-1889.06906,0.00034476,7]
[419724248,1775335863874,-1128.948676,0.00034476,7]
[419724249,1775335863884,-1889.06906,0.00034476,7]
[419724250,1775335863893,-1128.948676,0.00034476,7]
[419724251,1775335863903,-1128.948676,0.00034476,7]
[419724252,1775335863913,-1889.06906,0.00034476,7]
[419724253,1775335863922,-160.9357,0.000345,7]
[419724254,1775335863931,-160.9357,0.000345,7]
[419724255,1775335863941,-160.9357,0.000345,7]
[419724256,1775335863950,-160.9357,0.000345,7]
[419724257,1775335863960,-2810.0,0.00034527,11]
[419724258,1775335863969,-350.0,0.00034548,8]
[419724259,1775335863978,-1000.0,0.00034583,2]
[419724260,1775335863987,-160.9357,0.000346,14]
[419724261,1775335863997,-160.9357,0.000346,7]
[419724262,1775335864007,-160.9357,0.000346,7]
[419724263,1775335864017,-160.9357,0.000346,7]
[419724264,1775335864027,-160.9357,0.000346,7]
[419724265,1775335864036,-600.0,0.00034629,21]
[419724266,1775335864044,-800.0,0.00034629,21]
[419724267,1775335864054,-1000.0,0.00034639,2]
[419724268,1775335864064,-807.84316326,0.00034649,2]
[419724269,1775335864074,-1000.0,0.00034658,2]
[419724270,1775335864084,-150.0,0.00034696,2]
[419724271,1775335864094,-160.9357,0.000347,14]
[419724272,1775335864104,-160.9357,0.000347,7]
[419724273,1775335864113,-160.9357,0.000347,7]
[419724274,1775335864123,-160.9357,0.000347,7]
[419724275,1775335864132,-160.9357,0.000347,7]
[419724276,1775335864142,-764.52,0.00034709,2]
[419724277,1775335864151,-171.0,0.0003475,120]
[419724278,1775335864161,-25000.0,0.0003477,3]
[419724279,1775335864170,-1500.0,0.00034795,2]
[419724280,1775335864179,-162.0,0.00034796,11]
[419724281,1775335864189,-160.9357,0.000348,14]
[419724282,1775335864197,-160.9357,0.000348,7]
[419724283,1775335864206,-160.9357,0.000348,7]
[419724284,1775335864216,-160.9357,0.000348,7]
[419724285,1775335864226,-160.9357,0.000348,7]
[419724286,1775335864237,-2190.03629302,0.000348,2]
[419724287,1775335864281,-387.372,0.000348,2]
[419724288,1775335864366,-299.41952365,0.00027397,2]
[419724289,1775335864375,-280.71123981,0.00032876,2]
[419724293,1775336481631,-940.79,0.00011507,2]
[419724294,1775336481653,-187.95451372,0.00012658,2]
[419724295,1775336481675,-530.581,0.00012658,2]
[419724296,1775336481696,-1979.71839249,0.000127,2]
[419724297,1775336482051,-1200.0,0.00012712,2]
[419724298,1775336482074,-300.0,0.00012712,2]
[419724299,1775336482096,-2500.0,0.00012773,2]
[419724300,1775336482118,-156.39703094,0.00012773,2]
[419724301,1775336482142,-13348.55906285,0.00012773,2]
[419724310,1775336918253,155.54,6.041e-05,2]
[419724311,1775336918447,155.54,6.419e-05,2]
[419724312,1775336918636,155.54,6.796e-05,2]
[419724313,1775336918973,155.54,7.174e-05,2]
[419724314,1775336919065,155.54,7.551e-05,2]
[419724315,1775336919276,155.54,7.929e-05,2]
[419724316,1775336919489,155.54,8.306e-05,2]
[419724317,1775336919680,155.54,8.684e-05,2]
[419724318,1775336920097,155.54,9.062e-05,2]
[419724319,1775336920295,155.54,9.439e-05,2]
[419724320,1775337023288,-155.54,9.817e-05,2]
[419724328,1775337032070,-155.54,0.00010194,2]
[419724331,1775337032080,-155.54,0.00010572,2]
[419724333,1775337032090,-155.54,0.00010949,2]
[419724335,1775337032099,-155.54,0.00011327,2]
[419724336,1775337032108,-3.94704283,0.00011705,2]
[419724340,1775337032180,-151.59295717,0.00011705,2]
[419724341,1775337032189,-150.0,0.0001182,2]
[419724343,1775337032198,-155.54,0.00012082,2]
[419724344,1775337032207,-300.0,0.00012163,2]
[419724345,1775337032216,-1200.0,0.00012163,2]
[419724346,1775337032225,-1372.73577014,0.00012164,2]
[419724347,1775337032236,-19446.33422986,0.00012164,2]
[419724348,1775337032245,-1600.0,0.00012407,2]
[419724349,1775337032254,-256.29,0.00012483,2]
[419724350,1775337032263,-200.0,0.00012533,2]
[419724351,1775337032272,-2000.0,0.00012605,2]
[419724352,1775337032281,-150.0,0.00012671,2]
[419724353,1775337032291,-4773.11394353,0.00012672,2]
[419724354,1775337032300,-170.43537931,0.00012672,2]
[419724355,1775337032309,-21789.47200406,0.00012672,2]
[419724356,1775337032318,-162.64296386,0.00012762,2]
[419724357,1775337032327,-415.31553778,0.0001277,2]
[419724358,1775337032337,-378.26047703,0.00012771,2]
[419724359,1775337032347,-481.81743862,0.00012771,2]
[419724360,1775337032356,-612.05000632,0.00012771,2]
[419724361,1775337032365,-500.0,0.00012771,2]
[419724362,1775337032374,-500.0,0.00012771,2]
[419724363,1775337032383,-500.0,0.00012771,2]
[419724364,1775337032393,-500.0,0.00012771,2]
[419724365,1775337032403,-500.0,0.00012771,2]
[419724366,1775337032412,-500.0,0.00012771,2]
[419724367,1775337032421,-500.0,0.00012771,2]
[419724368,1775337032430,-500.0,0.00012771,2]
[419724369,1775337032439,-609.01274005,0.00012771,2]
[419724370,1775337032449,-500.0,0.00012771,2]
[419724371,1775337032458,-500.0,0.00012771,2]
[419724372,1775337032467,-268.66281508,0.00012771,2]
[419724373,1775337032476,-195.05699266,0.00012771,2]
[419724374,1775337032485,-500.0,0.00012771,2]
[419724375,1775337032494,-428.03522177,0.00012771,2]
[419724376,1775337032504,-266.55143098,0.00012771,2]
[419724377,1775337032512,-500.0,0.00012771,2]
[419724378,1775337032522,-443.61429513,0.00012771,2]
[419724379,1775337032531,-500.0,0.00012771,2]
[419724380,1775337032540,-500.0,0.00012771,2]
[419724381,1775337032549,-500.0,0.00012771,2]
[419724382,1775337032559,-500.0,0.00012771,2]
[419724383,1775337032568,-510.24775171,0.00012771,2]
[419724384,1775337032577,-500.0,0.00012771,2]
[419724385,1775337032586,-500.0,0.00012771,2]
[419724386,1775337032595,-500.0,0.00012771,2]
[419724387,1775337032604,-500.0,0.00012771,2]
[419724388,1775337032617,-500.0,0.00012771,2]
[419724389,1775337032627,-500.0,0.00012771,2]
[419724390,1775337032636,-500.0,0.00012771,2]
[419724391,1775337032646,-500.0,0.00012771,2]
[419724392,1775337032655,-500.0,0.00012771,2]
[419724393,1775337032664,-500.0,0.00012771,2]
[419724394,1775337032674,-500.0,0.00012771,2]
[419724395,1775337032683,-500.0,0.00012771,2]
[419724396,1775337032692,-500.0,0.00012771,2]
[419724397,1775337032701,-500.0,0.00012771,2]
[419724398,1775337032710,-500.0,0.00012771,2]
[419724399,1775337032719,-500.0,0.00012771,2]
[419724400,1775337032729,-350.0,0.00012771,2]
[419724401,1775337032739,-27848.47022563,0.00012772,2]
[419724402,1775337032751,-24899.10116864,0.00012772,2]
[419724403,1775337032763,-888.1752,0.00012772,2]
[419724404,1775337032875,-304.99459357,0.00012772,2]
[419724405,1775337032887,-300.0,0.00012772,2]
[419724407,1775337037841,-176.23,0.00012767,2]
[419724408,1775337037851,-727.70718342,0.00012772,2]
[419724409,1775337037895,-943.95867498,0.00012772,2]
[419724411,1775337039995,-892.18335078,0.00012772,2]
[419724412,1775337040049,-350.33533698,0.00012772,2]
[419724413,1775337040062,-408.63278698,0.00012772,2]
[419724414,1775337040103,-1902.07,0.00012772,2]
[419724415,1775337040114,-6633.13592568,0.00012772,2]
[419724416,1775337040686,-3600.0,0.00012772,2]
[419724417,1775337040741,-271.44092731,0.00012772,2]
[419724422,1775337041483,-308.5174995,0.00012772,2]
[419724423,1775337041540,-1429721.27712653,0.00012772,2]
[419724424,1775337041549,-3317.6,0.00012772,2]
[419724425,1775337041558,-500.0,0.00012772,2]
[419724426,1775337041567,-2500.0,0.00012773,2]
[419724427,1775337041576,-3657.207,0.00012773,2]
[419724428,1775337041586,-178.117,0.00012773,2]
[419724429,1775337041595,-26239.97189693,0.00012773,2]
[419724430,1775337041604,-198.39010279,0.00012773,2]
[419724431,1775337041613,-5394.69197319,0.00012773,2]
[419724432,1775337041623,-162.64296386,0.00012863,2]
[419724433,1775337041632,-500.0,0.00012873,2]
[419724434,1775337041643,-500.0,0.00012873,2]
[419724435,1775337041652,-500.0,0.00012873,2]
[419724436,1775337041661,-500.0,0.00012873,2]
[419724437,1775337041670,-500.0,0.00012873,2]
[419724438,1775337041680,-500.0,0.00012873,2]
[419724439,1775337041692,-500.0,0.00012873,2]
[419724440,1775337041703,-500.0,0.00012873,2]
[419724441,1775337041712,-3474.3649,0.00012873,2]
[419724442,1775337041722,-532.9299,0.00012873,2]
[419724443,1775337041731,-2500000.0,0.00012873,2]
[419724444,1775337041740,-1000.0,0.00012873,2]
[419724445,1775337041751,-273.4396,0.00012873,2]
[419724446,1775337041760,-9277.79,0.00012876,2]
[419724447,1775337041770,-4822.17,0.00012876,2]
[419724448,1775337041781,-150.99,0.00012876,2]
[419724449,1775337041791,-7351.94,0.00012876,2]
[419724450,1775337041802,-9999.99,0.00012876,2]
[419724451,1775337041814,-1266.82,0.00012876,2]
[419724452,1775337041825,-299.99,0.00012876,2]
[419724453,1775337041836,-2978.57135388,0.00012923,2]
[419724454,1775337041845,-999.99,0.00012963,2]
[419724455,1775337041855,-8345.68,0.00012963,2]
[419724456,1775337041865,-29684.17,0.00012963,2]
[419724457,1775337041875,-150.99,0.00012963,2]
[419724458,1775337041884,-9231.95,0.0001297,2]
[419724459,1775337041893,-250.0,0.00012971,2]
[419724460,1775337041903,-500.0,0.00012973,2]
[419724461,1775337041912,-230.99485257,0.00012987,2]
[419724462,1775337041921,-216.51438792,0.00012987,2]
[419724463,1775337041930,-232.61634024,0.00012987,2]
[419724464,1775337041940,-21946.11792375,0.00012999,2]
[419724465,1775337041951,-250.0,0.00013,2]
[419724466,1775337041961,-21789.47200405,0.00013031,2]
[419724467,1775337041971,-500.0,0.00013046,2]
[419724468,1775337041981,-249.0,0.00013066,2]
[419724469,1775337041990,-4773.1139435,0.00013133,2]
[419724470,1775337041999,-408.050213,0.0001326,2]
[419724471,1775337042009,-245.06181432,0.0001326,2]
[419724472,1775337042018,-500.0,0.0001332,2]
[419724473,1775337042030,-420.0,0.0001335,2]
[419724474,1775337042041,-1631.0,0.0001338,2]
[419724475,1775337042052,-21789.47200405,0.0001339,2]
[419724476,1775337042061,-120132.36,0.00013403,2]
[419724477,1775337042070,-1000.0,0.00013421,2]
[419724478,1775337042079,-1000.0,0.00013421,2]
[419724479,1775337042088,-1000.0,0.00013421,2]
[419724480,1775337042097,-1000.0,0.00013421,2]
[419724481,1775337042107,-1000.0,0.00013421,2]
[419724482,1775337042308,-1000.0,0.00013421,2]
[419724483,1775337042382,-500.0,0.00013421,2]
[419724484,1775337042392,-1000.0,0.00013421,2]
[419724485,1775337042402,-3240.0,0.00013425,2]
[419724486,1775337042411,-1000.0,0.00013521,2]
[419724487,1775337042420,-411.03320816,0.00013594,2]
[419724488,1775337042429,-4773.1139435,0.00013595,2]
[419724489,1775337042439,-500.0,0.00013698,2]
[419724490,1775337042448,-500.0,0.00013698,2]
[419724491,1775337042457,-268.57302384,0.00013698,2]
[419724492,1775337042466,-500.0,0.00013698,2]
[419724493,1775337042475,-500.0,0.00013698,2]
[419724494,1775337042484,-500.0,0.00013698,2]
[419724495,1775337042493,-500.0,0.00013698,2]
[419724496,1775337042502,-500.0,0.00013698,2]
[419724497,1775337042511,-500.0,0.00013698,2]
[419724498,1775337042520,-500.0,0.00013698,2]
[419724499,1775337042529,-500.0,0.00013698,2]
[419724500,1775337042538,-500.0,0.00013698,2]
[419724501,1775337042547,-500.0,0.00013698,2]
[419724502,1775337042556,-500.0,0.00013698,2]
[419724503,1775337042564,-500.0,0.00013698,2]
[419724504,1775337042574,-500.0,0.00013698,2]
[419724505,1775337042583,-500.0,0.00013698,2]
[419724506,1775337042593,-500.0,0.00013698,2]
[419724507,1775337042602,-500.0,0.00013698,2]
[419724508,1775337042611,-449.17994436,0.00013698,2]
[419724509,1775337042620,-500.0,0.00013698,2]
[419724510,1775337042629,-500.0,0.00013698,2]
[419724511,1775337042638,-500.0,0.00013698,2]
[419724512,1775337042647,-500.0,0.00013698,2]
[419724513,1775337042656,-561.59815036,0.00013698,2]
[419724514,1775337042666,-500.0,0.00013698,2]
[419724515,1775337042675,-500.0,0.00013698,2]
[419724516,1775337042684,-500.0,0.00013698,2]
[419724517,1775337042693,-500.0,0.00013698,2]
[419724518,1775337042704,-500.0,0.00013698,2]
[419724519,1775337042714,-500.0,0.00013698,2]
[419724520,1775337042723,-500.0,0.00013698,2]
[419724521,1775337042734,-500.0,0.00013698,2]
[419724522,1775337042743,-500.0,0.00013698,2]
[419724523,1775337042753,-500.0,0.00013698,2]
[419724524,1775337042762,-500.0,0.00013698,2]
[419724525,1775337042771,-500.0,0.00013698,2]
[419724526,1775337042780,-500.0,0.00013698,2]
[419724527,1775337042790,-500.0,0.00013698,2]
[419724528,1775337042799,-500.0,0.00013698,2]
[419724529,1775337042808,-500.0,0.00013698,2]
[419724530,1775337042816,-500.0,0.00013698,2]
[419724531,1775337042826,-516.13405438,0.00013698,2]
[419724532,1775337042835,-500.0,0.00013698,2]
[419724533,1775337042844,-500.0,0.00013698,2]
[419724534,1775337042852,-500.0,0.00013698,2]
[419724535,1775337042861,-500.0,0.00013698,2]
[419724536,1775337042870,-500.0,0.00013698,2]
[419724537,1775337042879,-500.0,0.00013698,2]
[419724538,1775337042888,-500.0,0.00013698,2]
[419724539,1775337042898,-500.0,0.00013698,2]
[419724540,1775337042907,-500.0,0.00013698,2]
[419724541,1775337042916,-500.0,0.00013698,2]
[419724542,1775337042924,-500.0,0.00013698,2]
[419724543,1775337042933,-500.0,0.00013698,2]
[419724544,1775337042942,-571.83,0.00013698,2]
[419724545,1775337042952,-571.83,0.00013698,2]
[419724546,1775337042962,-571.83,0.00013698,2]
[419724547,1775337042971,-571.83,0.00013698,2]
[419724548,1775337042980,-571.83,0.00013698,2]
[419724549,1775337042990,-571.83,0.00013698,2]
[419724550,1775337042999,-500.0,0.00013698,2]
[419724551,1775337043008,-500.0,0.00013698,2]
[419724552,1775337043016,-500.0,0.00013698,2]
[419724553,1775337043025,-500.0,0.00013698,2]
[419724554,1775337043035,-500.0,0.00013698,2]
[419724555,1775337043044,-500.0,0.00013698,2]
[419724556,1775337043054,-500.0,0.00013698,2]
[419724557,1775337043064,-500.0,0.00013698,2]
[419724558,1775337043073,-500.0,0.00013698,2]
[419724559,1775337043082,-500.0,0.00013698,2]
[419724560,1775337043092,-500.0,0.00013698,2]
[419724561,1775337043101,-500.0,0.00013698,2]
[419724562,1775337043111,-500.0,0.00013698,2]
[419724563,1775337043121,-500.0,0.00013698,2]
[419724564,1775337043130,-500.0,0.00013698,2]
[419724565,1775337043140,-500.0,0.00013698,2]
[419724566,1775337043149,-500.0,0.00013698,2]
[419724567,1775337043159,-500.0,0.00013698,2]
[419724568,1775337043168,-500.0,0.00013698,2]
[419724569,1775337043178,-500.0,0.00013698,2]
[419724570,1775337043188,-500.0,0.00013698,2]
[419724571,1775337043197,-500.0,0.00013698,2]
[419724572,1775337043207,-500.0,0.00013698,2]
[419724573,1775337043216,-500.0,0.00013698,2]
[419724574,1775337043225,-500.0,0.00013698,2]
[419724575,1775337043235,-500.0,0.00013698,2]
[419724576,1775337043244,-500.0,0.00013698,2]
[419724577,1775337043254,-500.0,0.00013698,2]
[419724578,1775337043263,-500.0,0.00013698,2]
[419724579,1775337043272,-500.0,0.00013698,2]
[419724580,1775337043281,-500.0,0.00013698,2]
[419724581,1775337043290,-500.0,0.00013698,2]
[419724582,1775337043300,-500.0,0.00013698,2]
[419724583,1775337043309,-500.0,0.00013698,2]
[419724584,1775337043319,-500.0,0.00013698,2]
[419724585,1775337043329,-500.0,0.00013698,2]
[419724586,1775337043339,-500.0,0.00013698,2]
[419724587,1775337043348,-500.0,0.00013698,2]
[419724588,1775337043358,-500.0,0.00013698,2]
[419724589,1775337043367,-500.0,0.00013698,2]
[419724590,1775337043377,-475.31700749,0.00013698,2]
[419724591,1775337043387,-500.0,0.00013698,2]
[419724592,1775337043397,-500.0,0.00013698,2]
[419724593,1775337043407,-507.27121127,0.00013698,2]
[419724594,1775337043416,-500.0,0.00013698,2]
[419724595,1775337043426,-500.0,0.00013698,2]
[419724597,1775337043436,-540.38303843,0.00013698,2]
[419724598,1775337043445,-500.0,0.00013698,2]
[419724599,1775337043455,-500.0,0.00013698,2]
[419724600,1775337043464,-500.0,0.00013698,2]
[419724601,1775337043474,-500.0,0.00013698,2]
[419724602,1775337043483,-500.0,0.00013698,2]
[419724603,1775337043492,-500.0,0.00013698,2]
[419724604,1775337043502,-500.0,0.00013698,2]
[419724605,1775337043511,-500.0,0.00013698,2]
[419724606,1775337043520,-500.0,0.00013698,2]
[419724607,1775337043529,-500.0,0.00013698,2]
[419724608,1775337043538,-500.0,0.00013698,2]
[419724609,1775337043547,-500.0,0.00013698,2]
[419724610,1775337043556,-372.04738968,0.00013698,2]
[419724611,1775337043566,-500.0,0.00013698,2]
[419724612,1775337043575,-500.0,0.00013698,2]
[419724613,1775337043584,-500.0,0.00013698,2]
[419724614,1775337043593,-500.0,0.00013698,2]
[419724615,1775337043603,-500.0,0.00013698,2]
[419724616,1775337043612,-398.43669082,0.00013698,2]
[419724617,1775337043621,-500.0,0.00013698,2]
[419724618,1775337043630,-500.0,0.00013698,2]
[419724619,1775337043639,-500.0,0.00013698,2]
[419724621,1775337043648,-500.0,0.00013698,2]
[419724622,1775337043658,-500.0,0.00013698,2]
[419724624,1775337043667,-500.0,0.00013698,2]
[419724625,1775337043677,-500.0,0.00013698,2]
[419724626,1775337043686,-500.0,0.00013698,2]
[419724627,1775337043695,-500.0,0.00013698,2]
[419724628,1775337043705,-500.0,0.00013698,2]
[419724629,1775337043714,-500.0,0.00013698,2]
[419724630,1775337043723,-500.0,0.00013698,2]
[419724631,1775337043731,-500.0,0.00013698,2]
[419724632,1775337043741,-150.0,0.00013699,2]
[419724633,1775337043751,-150.0,0.00013699,2]
[419724634,1775337043760,-150.0,0.00013699,2]
[419724635,1775337043769,-150.0,0.00013699,2]
[419724636,1775337043779,-150.0,0.00013699,2]
[419724637,1775337043788,-150.0,0.00013699,2]
[419724638,1775337043797,-166.66,0.00013699,2]
[419724639,1775337043806,-200.0,0.00013699,2]
[419724640,1775337043815,-500.0,0.00013699,2]
[419724641,1775337043824,-500.0,0.00013699,2]
[419724642,1775337043834,-500.0,0.00013699,2]
[419724643,1775337043843,-500.0,0.00013699,2]
[419724644,1775337043851,-500.0,0.00013699,2]
[419724645,1775337043859,-500.0,0.00013699,2]
[419724646,1775337043866,-500.0,0.00013699,2]
[419724647,1775337043873,-500.0,0.00013699,2]
[419724648,1775337043880,-500.0,0.00013699,2]
[419724649,1775337043887,-500.0,0.00013699,2]
[419724650,1775337043893,-500.0,0.00013699,2]
[419724651,1775337043900,-500.0,0.00013699,2]
[419724652,1775337043908,-500.0,0.00013699,2]
[419724653,1775337043916,-500.0,0.00013699,2]